[Event "28th WSCC Open 50 2018"]
[Site "Bled"]
[Date "2018.11.27"]
[Round "9"]
[White "Arakhamia-Grant, Ketevan"]
[Black "Kannenberg, Karl-Heinz"]
[Result "1-0"]
[ECO "B12"]
[WhiteElo "2373"]
[BlackElo "2182"]
[Annotator "ChessBase"]
[PlyCount "83"]
[EventDate "2018.11.17"]
[EventType "swiss"]
[EventCountry "SLO"]
[SourceTitle "playchess.com"]
[Source "ChessBase"]
[SourceQuality "1"]
[TimeControl "40/5400+30:1800+30"]

1. e4 {[%emt 0:00:00]} c6 {[%emt 0:00:00]} 2. d4 {[%emt 0:00:00]} d5 {[%emt 0:00:00]} 3. e5 {[%emt 0:00:00]} Bf5 {[%emt 0:00:04]} 4. Nd2 {[%emt 0:00:00]} e6 {[%emt 0:00:22]} 5. Nb3 {[%emt 0:00:00]} Nd7 {[%emt 0:00:27]} 6. Nf3 {[%emt 0:00:04]} Ne7 {[%emt 0:00:19]} 7. Be2 {[%emt 0:00:24]} Bg4 {[%emt 0:00:23]} 8. O-O {[%emt 0:00:51]} Nf5 {[%emt 0:01:01]} 9. a4 {[%emt 0:02:28]} g6 {[%emt 0:01:54]} 10. a5 {[%emt 0:00:58]} a6 {[%emt 0:01:23]} 11. Re1 {[%emt 0:06:13]} h5 {[%emt 0:00:32]} 12. Bd2 {[%emt 0:06:34]} Be7 {[%emt 0:04:06]} 13. Rc1 {[%emt 0:01:15]} O-O {[%emt 0:19:01]} 14. c4 {[%emt 0:03:50]} Rc8 {[%emt 0:00:49]} 15. h3 {[%emt 0:00:49]} Bxf3 {[%emt 0:00:25]} 16. Bxf3 {[%emt 0:00:06]} Re8 {[%emt 0:04:33]} 17. Be2 {[%emt 0:17:29]} Bg5 {[%emt 0:10:53]} 18. cxd5 {[%emt 0:01:47]} exd5 {[%emt 0:01:21]} 19. Bd3 {[%emt 0:01:10]} Ng7 {[%emt 0:00:23]} 20. f4 {[%emt 0:02:28]} Be7 {[%emt 0:05:58]} 21. Qf3 {[%emt 0:03:37]} Nf8 {[%emt 0:01:26]} 22. f5 {[%emt 0:15:25]} gxf5 {[%emt 0:06:19]} 23. Bxf5 {[%emt 0:00:17]} Nfe6 {[%emt 0:00:17]} 24. Rf1 {[%emt 0:00:29]} Rf8 {[%emt 0:00:10]} 25. Bb1 {[%emt 0:15:49]} f5 {[%emt 0:08:52]} 26. exf6 {[%emt 0:00:25]} Rxf6 {[%emt 0:01:50]} 27. Qd3 {[%emt 0:00:09]} Nf8 {[%emt 0:03:31]} 28. Nc5 {[%emt 0:00:27]} Rc7 {[%emt 0:08:16]} 29. b4 {[%emt 0:02:06]} Bxc5 {[%emt 0:06:00]} 30. dxc5 {[%emt 0:10:50]} Rcf7 {[%emt 0:00:34]} 31. Bc3 {[%emt 0:03:49]} Rxf1+ {[%emt 0:00:24]} 32. Rxf1 {[%emt 0:00:03]} Rxf1+ {[%emt 0:01:43]} 33. Kxf1 {[%emt 0:00:09]} Qg5 {[%emt 0:00:55]} 34. Kf2 {[%emt 0:00:48]} Qf4+ {[%emt 0:03:46]} 35. Qf3 {[%emt 0:00:49]} Qh6 {[%emt 0:03:15]} 36. Qg3 {[%emt 0:00:54]} h4 {[%emt 0:02:27]} 37. Qxg7+ {[%emt 0:05:05]} Qxg7 {[%emt 0:00:13]} 38. Bxg7 {[%emt 0:00:01]} Kxg7 {[%emt 0:00:17]} 39. Bf5 {[%emt 0:00:02]} Kf6 {[%emt 0:02:01]} 40. Bc8 {[%emt 0:00:00]} Ke7 {[%emt 0:00:00]} 41. Bxb7 {[%emt 0:01:02]} Kd7 {[%emt 0:01:58]} 42. Bxa6 {[%emt 0:00:24]} 1-0

[Event "28th WSCC Open 50 2018"]
[Site "Bled"]
[Date "2018.11.27"]
[Round "9"]
[White "Plotkin, Victor"]
[Black "Chan, Peng Kong"]
[Result "1-0"]
[ECO "B22"]
[WhiteElo "2307"]
[BlackElo "2169"]
[Annotator "NA"]
[PlyCount "69"]
[EventDate "2018.11.17"]
[EventType "swiss"]
[EventCountry "SLO"]
[SourceTitle "playchess.com"]
[Source "ChessBase"]
[SourceQuality "1"]
[TimeControl "40/5400+30:1800+30"]

1. e4 {[%emt 0:00:00]} c5 {[%emt 0:00:00]} 2. c3 {[%emt 0:00:00]} g6 {[%emt 0:01:05]} 3. d4 {[%emt 0:00:00]} cxd4 {[%emt 0:00:05]} 4. cxd4 {[%emt 0:00:00]} d5 {[%emt 0:00:05]} 5. exd5 {[%emt 0:02:49]} Nf6 {[%emt 0:00:45]} 6. Bb5+ {[%emt 0:07:33]} Nbd7 {[%emt 0:00:23]} 7. Nc3 {[%emt 0:01:24]} a6 {[%emt 0:04:02] B10: Caro-Kann: 2 d3 and 2 c4} (7... Bg7 8. d6 exd6 9. Qe2+ Qe7 10. Bf4 Bf8 11. O-O-O Qxe2 12. Bxe2 Nb6 13. Bf3 Be7 14. Re1 Be6 15. Nh3 Kd7 16. Ng5 Bd5 17. Nxd5 Nfxd5 18. Bd2 f5 19. Ne6 Bf6 20. Re2 Rhe8 21. Rhe1 Rac8+ 22. Kb1 Nc7 {½-½ (22) Ghaem Maghami,E (2570)-Negi,P (2641) Moscow 2012}) 8. Be2 {[%emt 0:05:28]} Nb6 {[%emt 0:09:53]} 9. Nf3 {[%emt 0:00:15]} Nbxd5 {[%emt 0:00:30]} 10. Ne5 {[%emt 0:01:50]} Nxc3 {[%emt 0:00:43]} 11. bxc3 {[%emt 0:02:24]} Bg7 {[%emt 0:00:05]} 12. O-O {[%emt 0:07:24]} O-O {[%emt 0:00:08]} 13. Bf3 {[%emt 0:03:19]} Qc7 {[%emt 0:03:25]} 14. Qb3 {[%emt 0:02:49]} Nd7 $146 {[%emt 0:06:40]} ({Predecessor:} 14... Ne8 15. Bf4 Nd6 {½-½ (34) Medvegy,N (2338)-Lorincz,I (2357) Budapest 2002}) 15. Nxd7 {[%emt 0:12:24]} Bxd7 {[%emt 0:14:08]} 16. Qxb7 {[%emt 0:01:32]} Qxc3 {[%emt 0:06:58]} 17. Bb2 {[%emt 0:04:13]} Qc2 {[%emt 0:00:16]} 18. Qxd7 {[%emt 0:11:45]} Rad8 {[%emt 0:00:35]} 19. Qxe7 {[%emt 0:08:22]} Qxb2 {[%emt 0:00:18]} 20. Rab1 {[%emt 0:05:17]} Qxa2 {[%emt 0:15:25]} 21. d5 {[%emt 0:01:05]} Rfe8 {[%emt 0:01:25]} 22. Qa7 {[%emt 0:00:39]} Ra8 {[%emt 0:02:16]} 23. Qb6 {[%emt 0:01:00]} Rad8 {[%emt 0:03:00]} 24. d6 {[%emt 0:05:31]} Rd7 {[%emt 0:06:30]} (24... Be5 $11 {remains equal.}) 25. Rbd1 {[%emt 0:06:08]} Red8 {[%emt 0:00:43]} 26. Bg4 {[%emt 0:01:40]} f5 {[%emt 0:00:14]} 27. Bf3 {[%emt 0:00:17]} Qb2 {[%emt 0:07:45]} 28. Qxa6 {[%emt 0:00:43]} Qf6 {[%emt 0:00:05]} 29. Rfe1 {[%emt 0:03:03]} Rxd6 {[%emt 0:03:24]} 30. Qc4+ {[%emt 0:01:02]} Kh8 {[%emt 0:00:45]} 31. Rxd6 {[%emt 0:00:31]} Qxd6 {[%emt 0:00:14]} 32. Qf7 {[%emt 0:01:15]} Qf6 $11 {[%emt 0:00:36]} 33. Qc7 {[%emt 0:01:16]} Qd6 {[%emt 0:00:04]} 34. Qxd6 {[%emt 0:00:06]} Rxd6 {[%emt 0:00:07]} 35. Re8+ {[%emt 0:00:07]} 1-0

[Event "28th WSCC Open 50 2018"]
[Site "Bled"]
[Date "2018.11.27"]
[Round "9"]
[White "Mannion, Stephen R"]
[Black "Bischoff, Klaus"]
[Result "0-1"]
[ECO "B93"]
[WhiteElo "2286"]
[BlackElo "2507"]
[Annotator "RC"]
[PlyCount "80"]
[EventDate "2018.11.17"]
[EventType "swiss"]
[EventCountry "SLO"]
[SourceTitle "playchess.com"]
[Source "ChessBase"]
[SourceQuality "1"]
[TimeControl "40/5400+30:1800+30"]

1. e4 {[%emt 0:00:00]} c5 {[%emt 0:00:00]} 2. Nf3 {[%emt 0:00:00]} d6 {[%emt 0:00:55]} 3. d4 {[%emt 0:00:00]} cxd4 {[%emt 0:00:12]} 4. Nxd4 {[%emt 0:00:00]} Nf6 {[%emt 0:00:07]} 5. Nc3 {[%emt 0:00:00]} a6 {[%emt 0:00:09]} 6. f4 {[%emt 0:05:33]} Qc7 {[%emt 0:03:40]} 7. a4 {[%emt 0:00:47]} e6 {[%emt 0:08:12]} 8. Be2 {[%emt 0:02:01]} Nc6 {[%emt 0:01:39]} 9. Be3 {[%emt 0:01:39]} Bd7 {[%emt 0:02:18]} 10. Nb3 {[%emt 0:01:54]} Na5 {[%emt 0:06:38]} 11. Nxa5 {[%emt 0:05:29]} Qxa5 {[%emt 0:00:20]} 12. O-O {[%emt 0:00:18]} Be7 {[%emt 0:03:16]} 13. Kh1 {[%emt 0:03:50]} Bc6 {[%emt 0:11:41]} 14. Bf3 {[%emt 0:15:46]} Rc8 {[%emt 0:12:46]} 15. Qd2 {[%emt 0:11:38]} Qc7 {[%emt 0:04:03]} 16. a5 {[%emt 0:07:04]} O-O {[%emt 0:00:47]} 17. Rfd1 {[%emt 0:01:00]} Nd7 {[%emt 0:01:37]} 18. Qf2 {[%emt 0:06:45]} f5 {[%emt 0:10:04]} 19. exf5 {[%emt 0:01:12]} Bxf3 {[%emt 0:01:29]} 20. Qxf3 {[%emt 0:03:46]} Rxf5 {[%emt 0:00:08]} 21. Qe4 {[%emt 0:03:49]} Kf7 {[%emt 0:03:00]} 22. g4 {[%emt 0:06:32]} Nf6 {[%emt 0:00:40]} 23. Qg2 {[%emt 0:03:40]} Rxa5 {[%emt 0:00:16]} 24. Rxa5 {[%emt 0:01:32]} Qxa5 {[%emt 0:00:03]} 25. g5 {[%emt 0:00:18]} Nd7 {[%emt 0:04:08]} 26. Qxb7 {[%emt 0:05:45]} Rc7 {[%emt 0:01:13]} 27. Qe4 {[%emt 0:02:09]} g6 {[%emt 0:01:25]} 28. Bd4 {[%emt 0:01:48]} Qf5 {[%emt 0:01:10]} 29. Qe2 {[%emt 0:00:11]} Rc6 {[%emt 0:00:29]} 30. Ne4 {[%emt 0:01:53]} d5 {[%emt 0:00:19]} 31. Nc3 {[%emt 0:01:38]} Bd6 {[%emt 0:01:11]} 32. Be3 {[%emt 0:03:46]} Rc4 {[%emt 0:03:31]} 33. Rf1 {[%emt 0:00:37]} Nc5 {[%emt 0:00:28]} 34. Bd2 {[%emt 0:00:42]} Rb4 {[%emt 0:01:22]} 35. b3 {[%emt 0:01:20]} Qxc2 {[%emt 0:00:47]} 36. f5 {[%emt 0:00:10]} exf5 {[%emt 0:00:20]} 37. Nxd5 {[%emt 0:01:46]} Rh4 {[%emt 0:04:26]} 38. Rf2 {[%emt 0:01:27]} Ne4 {[%emt 0:00:36]} 39. Rg2 {[%emt 0:00:30]} Nxd2 {[%emt 0:01:26]} 40. Nf6 {[%emt 0:00:00]} Qc1+ {[%emt 0:00:00]} 0-1

[Event "28th WSCC Open 50 2018"]
[Site "Bled"]
[Date "2018.11.27"]
[Round "9"]
[White "Kolesar, Milan"]
[Black "Namyslo, Holger"]
[Result "1/2-1/2"]
[ECO "A33"]
[WhiteElo "2198"]
[BlackElo "2254"]
[Annotator "NA"]
[PlyCount "34"]
[EventDate "2018.11.17"]
[EventType "swiss"]
[EventCountry "SLO"]
[SourceTitle "playchess.com"]
[Source "ChessBase"]
[SourceQuality "1"]
[TimeControl "40/5400+30:1800+30"]

1. Nf3 {[%emt 0:00:00]} c5 {[%emt 0:00:03]} 2. c4 {[%emt 0:00:00]} Nc6 {[%emt 0:00:18]} 3. d4 {[%emt 0:00:00]} cxd4 {[%emt 0:00:16]} 4. Nxd4 {[%emt 0:00:05]} Nf6 {[%emt 0:00:46]} 5. Nc3 {[%emt 0:00:06]} e6 {[%emt 0:01:20]} 6. g3 {[%emt 0:01:09]} Qb6 {[%emt 0:00:35]} 7. Nb3 {[%emt 0:00:59]} Ne5 {[%emt 0:00:45]} 8. e4 {[%emt 0:00:25]} Bb4 {[%emt 0:01:45]} 9. Qe2 {[%emt 0:00:09]} d6 {[%emt 0:07:45]} 10. f4 {[%emt 0:06:40]} Nc6 {[%emt 0:07:22]} 11. Be3 {[%emt 0:04:53]} Bxc3+ {[%emt 0:01:50]} 12. bxc3 {[%emt 0:00:07]} Qc7 {[%emt 0:00:31]} 13. Bg2 {[%emt 0:00:45]} O-O {[%emt 0:02:44]} 14. c5 {[%emt 0:04:24]} dxc5 {[%emt 0:02:07]} 15. Bxc5 {[%emt 0:00:28]} Rd8 {[%emt 0:10:34]} 16. O-O {[%emt 0:00:56]} e5 {[%emt 0:00:56]} 17. f5 {[%emt 0:15:23]} Na5 {[%emt 0:08:06]} 1/2-1/2

[Event "28th WSCC Open 50 2018"]
[Site "Bled"]
[Date "2018.11.28"]
[Round "10"]
[White "Namyslo, Holger"]
[Black "Biro, Sandor"]
[Result "0-1"]
[ECO "C57"]
[WhiteElo "2254"]
[BlackElo "2191"]
[Annotator "RC"]
[PlyCount "62"]
[EventDate "2018.11.17"]
[EventType "swiss"]
[EventCountry "SLO"]
[SourceTitle "playchess.com"]
[Source "ChessBase"]
[SourceQuality "1"]
[TimeControl "40/5400+30:1800+30"]

1. e4 {[%emt 0:00:00]} e5 {[%emt 0:00:00]} 2. Nf3 {[%emt 0:00:00]} Nc6 {[%emt 0:00:00]} 3. Bc4 {[%emt 0:00:05]} Nf6 {[%emt 0:00:00]} 4. Ng5 {[%emt 0:00:24]} d5 {[%emt 0:00:00]} 5. exd5 {[%emt 0:00:06]} Nd4 {[%emt 0:00:08]} 6. c3 {[%emt 0:00:05]} b5 {[%emt 0:00:05]} 7. Bf1 {[%emt 0:00:05]} Nxd5 {[%emt 0:00:06]} 8. Ne4 {[%emt 0:12:03]} Ne6 {[%emt 0:00:36]} 9. Bxb5+ {[%emt 0:01:54]} Bd7 {[%emt 0:00:06]} 10. Qa4 {[%emt 0:03:20]} Nb6 {[%emt 0:09:46]} 11. Bxd7+ {[%emt 0:00:16]} Nxd7 {[%emt 0:00:09]} 12. O-O {[%emt 0:02:45]} Be7 {[%emt 0:06:18]} 13. d4 {[%emt 0:01:56]} exd4 {[%emt 0:00:18]} 14. cxd4 {[%emt 0:00:54]} O-O {[%emt 0:00:09]} 15. Be3 {[%emt 0:07:53]} Nb6 {[%emt 0:06:16]} 16. Qd1 {[%emt 0:00:43]} f5 {[%emt 0:10:11]} 17. Nc5 {[%emt 0:20:33]} Bxc5 {[%emt 0:03:24]} 18. dxc5 {[%emt 0:01:32]} Qxd1 {[%emt 0:00:21]} 19. Rxd1 {[%emt 0:00:04]} Na4 {[%emt 0:00:28]} 20. b3 {[%emt 0:07:31]} Rad8 {[%emt 0:04:22]} 21. Rc1 {[%emt 0:01:19]} f4 {[%emt 0:13:36]} 22. Bd2 {[%emt 0:09:55]} Naxc5 {[%emt 0:00:53]} 23. Ba5 {[%emt 0:03:16]} Nd3 {[%emt 0:05:20]} 24. Rd1 {[%emt 0:02:07]} f3 {[%emt 0:00:41]} 25. gxf3 {[%emt 0:00:54]} Rxf3 {[%emt 0:05:28]} 26. Rd2 {[%emt 0:03:38]} Rf5 {[%emt 0:02:45]} 27. Bc3 {[%emt 0:01:31]} Nef4 {[%emt 0:02:01]} 28. Na3 {[%emt 0:03:13]} Rd6 {[%emt 0:01:29]} 29. Nc4 {[%emt 0:03:44]} Rg6+ {[%emt 0:00:44]} 30. Kf1 {[%emt 0:02:31]} Rfg5 {[%emt 0:00:10]} 31. Rxd3 {[%emt 0:00:26]} Rg1# {[%emt 0:00:08]} 0-1

[Event "28th WSCC Open 50 2018"]
[Site "Bled"]
[Date "2018.11.28"]
[Round "10"]
[White "Bergstrom, Rolf"]
[Black "Resika, Nathan"]
[Result "1-0"]
[ECO "B31"]
[WhiteElo "2216"]
[BlackElo "2124"]
[Annotator "RC"]
[PlyCount "149"]
[EventDate "2018.11.17"]
[EventType "swiss"]
[EventCountry "SLO"]
[SourceTitle "playchess.com"]
[Source "ChessBase"]
[SourceQuality "1"]
[TimeControl "40/5400+30:1800+30"]

1. e4 c5 {[%emt 0:02:34]} 2. Nf3 {[%emt 0:00:00]} Nc6 {[%emt 0:00:36]} 3. Bb5 {[%emt 0:00:02]} g6 {[%emt 0:00:26]} 4. Bxc6 {[%emt 0:00:09]} bxc6 {[%emt 0:00:06]} 5. O-O {[%emt 0:00:10]} Bg7 {[%emt 0:00:23]} 6. Re1 {[%emt 0:00:08]} Nh6 {[%emt 0:00:49]} 7. c3 {[%emt 0:00:22]} O-O {[%emt 0:01:37]} 8. d4 {[%emt 0:00:17]} cxd4 {[%emt 0:01:18]} 9. cxd4 {[%emt 0:00:08]} d5 {[%emt 0:00:39]} 10. e5 {[%emt 0:00:08]} f6 {[%emt 0:00:30]} 11. h3 {[%emt 0:10:00]} Nf7 {[%emt 0:04:43]} 12. e6 {[%emt 0:03:38]} Ng5 {[%emt 0:01:27]} 13. Bxg5 {[%emt 0:16:34]} fxg5 {[%emt 0:00:42]} 14. Nc3 {[%emt 0:02:53]} Qd6 {[%emt 0:49:40]} 15. Nxg5 {[%emt 0:14:50]} Qf4 {[%emt 0:06:10]} 16. Nf3 {[%emt 0:00:50]} Rb8 {[%emt 0:04:27]} 17. a3 {[%emt 0:07:44]} Rxb2 {[%emt 0:05:01]} 18. Qc1 {[%emt 0:02:22]} Rb8 {[%emt 0:15:48]} 19. Qxf4 {[%emt 0:03:54]} Rxf4 {[%emt 0:00:05]} 20. Rac1 {[%emt 0:00:11]} Rb3 {[%emt 0:02:02]} 21. Nxd5 {[%emt 0:00:15]} cxd5 {[%emt 0:00:43]} 22. Rxc8+ {[%emt 0:00:10]} Bf8 {[%emt 0:00:05]} 23. Rd8 {[%emt 0:02:42]} Rxa3 {[%emt 0:00:34]} 24. Rc1 {[%emt 0:00:09]} Ra6 {[%emt 0:00:15]} 25. Rc7 {[%emt 0:03:47]} Rxe6 {[%emt 0:00:08]} 26. Rxa7 {[%emt 0:00:04]} Rf5 {[%emt 0:00:48]} 27. Ne5 {[%emt 0:00:34]} Rexe5 {[%emt 0:01:15]} 28. dxe5 {[%emt 0:00:58]} Rxe5 {[%emt 0:00:03]} 29. Raa8 {[%emt 0:02:02]} Rf5 {[%emt 0:00:08]} 30. g4 {[%emt 0:00:05]} Rf6 {[%emt 0:01:00]} 31. Rxd5 {[%emt 0:00:05]} Kf7 {[%emt 0:00:12]} 32. Kg2 {[%emt 0:02:17]} Re6 {[%emt 0:00:17]} 33. Rd3 {[%emt 0:00:46]} Bg7 {[%emt 0:00:53]} 34. Rf3+ {[%emt 0:00:17]} Rf6 {[%emt 0:00:05]} 35. Re3 {[%emt 0:00:06]} Re6 {[%emt 0:00:12]} 36. Rxe6 {[%emt 0:00:57]} Kxe6 {[%emt 0:00:04]} 37. f4 {[%emt 0:00:08]} Kf7 {[%emt 0:01:12]} 38. Ra5 {[%emt 0:01:36]} Bc3 {[%emt 0:00:27]} 39. Rb5 {[%emt 0:00:17]} Bf6 {[%emt 0:00:28]} 40. Kf3 {[%emt 0:00:00]} Bg7 {[%emt 0:00:00]} 41. Ke4 {[%emt 0:00:22]} Bf6 {[%emt 0:03:18]} 42. Rd5 {[%emt 0:02:53]} Bh4 {[%emt 0:02:57]} 43. Rc5 {[%emt 0:03:00]} Bf6 {[%emt 0:00:20]} 44. Rb5 {[%emt 0:00:06]} h6 {[%emt 0:02:00]} 45. Rb7 {[%emt 0:00:52]} Bh4 {[%emt 0:00:18]} 46. f5 {[%emt 0:01:09]} Bf6 {[%emt 0:00:35]} 47. Ra7 {[%emt 0:00:26]} Bg5 {[%emt 0:03:02]} 48. Ra6 {[%emt 0:00:28]} Bf6 {[%emt 0:00:41]} 49. fxg6+ {[%emt 0:09:20]} Kxg6 {[%emt 0:00:19]} 50. Kf4 {[%emt 0:00:04]} Kf7 {[%emt 0:02:22]} 51. Kf5 {[%emt 0:01:49]} Kg7 {[%emt 0:03:34]} 52. Rc6 {[%emt 0:00:55]} Bh4 {[%emt 0:01:18]} 53. Rg6+ {[%emt 0:00:09]} Kh7 {[%emt 0:00:14]} 54. Re6 {[%emt 0:00:06]} Kg7 {[%emt 0:00:14]} 55. Ra6 {[%emt 0:00:25]} Bf6 {[%emt 0:01:10]} 56. Ra5 {[%emt 0:05:50]} Kf7 {[%emt 0:00:26]} 57. Rb5 {[%emt 0:00:09]} Bg5 {[%emt 0:01:11]} 58. Rb1 {[%emt 0:00:46]} Bf6 {[%emt 0:00:34]} 59. Rf1 {[%emt 0:00:21]} Bh4 {[%emt 0:00:38]} 60. Rh1 {[%emt 0:01:17]} Kg7 {[%emt 0:02:58]} 61. Rh2 {[%emt 0:01:24]} Kf7 {[%emt 0:00:27]} 62. Rg2 {[%emt 0:00:06]} Bf6 {[%emt 0:00:14]} 63. Rf2 {[%emt 0:01:47]} Bh4 {[%emt 0:00:13]} 64. Rf3 {[%emt 0:00:44]} Bf6 {[%emt 0:00:35]} 65. Ke4 {[%emt 0:00:12]} Kg6 {[%emt 0:02:15]} 66. Rf5 {[%emt 0:00:05]} Bg5 {[%emt 0:00:18]} 67. Kd5 {[%emt 0:00:42]} h5 {[%emt 0:01:36]} 68. h4 {[%emt 0:00:51]} Bxh4 {[%emt 0:00:09]} 69. Rxh5 {[%emt 0:00:02]} Bf6 {[%emt 0:05:22]} 70. Ke6 {[%emt 0:00:50]} Bg5 {[%emt 0:00:11]} 71. Rh8 {[%emt 0:00:18]} Bf6 {[%emt 0:00:15]} 72. Rg8+ {[%emt 0:00:11]} Kh7 {[%emt 0:01:20]} 73. Kf7 {[%emt 0:00:22]} Kh6 {[%emt 0:00:27]} 74. Rg6+ {[%emt 0:00:09]} Kh7 {[%emt 0:00:20]} 75. g5 {[%emt 0:01:12]} 1-0

[Event "28th WSCC Open 50 2018"]
[Site "Bled"]
[Date "2018.11.28"]
[Round "10"]
[White "Haessel, Dale R."]
[Black "Petran, Peter"]
[Result "1-0"]
[ECO "A40"]
[WhiteElo "2155"]
[BlackElo "2256"]
[Annotator "NA RC"]
[PlyCount "57"]
[EventDate "2018.11.17"]
[EventType "swiss"]
[EventCountry "SLO"]
[SourceTitle "playchess.com"]
[Source "ChessBase"]
[SourceQuality "1"]
[TimeControl "40/5400+30:1800+30"]

1. d4 {[%emt 0:00:00]} g6 {[%emt 0:00:36]} 2. c4 {[%emt 0:00:00]} Bg7 {[%emt 0:00:19]} 3. e4 {[%emt 0:00:00]} Nc6 {[%emt 0:02:26]} 4. Nf3 {[%emt 0:00:00]} e5 {[%emt 0:00:22]} 5. Bg5 {[%emt 0:00:11] A40: Unusual replies to 1 d4} (5. dxe5 Nxe5 6. Be2 d6 7. O-O Nxf3+ 8. Bxf3 Ne7 9. Nc3 O-O 10. Be3 Be6 11. c5 Nc8 12. Qc2 c6 13. Rad1 Qe7 {1-0 (56) Brodsky,M (2558)-Nepomniachtchi,I (2718) Sochi 2012}) 5... Nge7 {[%emt 0:01:48]} 6. dxe5 {[%emt 0:00:34]} Nxe5 {[%emt 0:00:23]} 7. Nxe5 {[%emt 0:00:33]} Bxe5 {[%emt 0:00:02]} 8. Nc3 {[%emt 0:00:17]} h6 {[%emt 0:03:14]} 9. Be3 {[%emt 0:00:06]} d6 {[%emt 0:00:47]} 10. Qd2 {[%emt 0:03:46]} Bg7 {[%emt 0:00:18]} 11. Be2 {[%emt 0:00:37]} Be6 {[%emt 0:00:28]} 12. O-O {[%emt 0:03:48]} a6 $146 {[%emt 0:01:28]} ({Predecessor:} 12... h5) 13. Nd5 {[%emt 0:03:10]} c5 {[%emt 0:10:42]} 14. Rab1 {[%emt 0:18:29]} Nc6 {[%emt 0:02:47]} 15. b4 {[%emt 0:03:24]} b6 {[%emt 0:11:10]} 16. bxc5 {[%emt 0:07:50]} bxc5 {[%emt 0:00:36]} 17. Rb7 {[%emt 0:00:26]} Rc8 {[%emt 0:00:51]} 18. f4 {[%emt 0:14:47]} Nd4 {[%emt 0:08:30]} 19. f5 {[%emt 0:14:51]} Bxd5 {[%emt 0:00:40]} 20. cxd5 {[%emt 0:00:14]} g5 {[%emt 0:13:44]} 21. f6 {[%emt 0:02:32]} Bxf6 {[%emt 0:08:25]} 22. Bg4 {[%emt 0:00:30]} O-O {[%emt 0:00:15]} 23. Rd7 {[%emt 0:00:28]} Qe8 {[%emt 0:01:42]} 24. Rxf6 {[%emt 0:02:12]} Qxe4 {[%emt 0:00:06]} 25. Bh5 {[%emt 0:05:04]} Nf5 $18 {[%emt 0:06:53]} 26. Rfxf7 {[%emt 0:09:08]} Rxf7 {[%emt 0:01:40]} 27. Bxf7+ {[%emt 0:00:06]} Kf8 {[%emt 0:00:05]} 28. Be6 {[%emt 0:02:59]} Nxe3 {[%emt 0:02:23]} 29. Qf2+ {[%emt 0:00:08]} 1-0

[Event "28th WSCC Open 50 2018"]
[Site "Bled"]
[Date "2018.11.28"]
[Round "10"]
[White "Gavrish, Leonid"]
[Black "Mukanov, Saltanat"]
[Result "0-1"]
[ECO "A69"]
[WhiteElo "2144"]
[BlackElo "2250"]
[Annotator "RC"]
[PlyCount "124"]
[EventDate "2018.11.17"]
[EventType "swiss"]
[EventCountry "SLO"]
[SourceTitle "playchess.com"]
[Source "ChessBase"]
[SourceQuality "1"]
[TimeControl "40/5400+30:1800+30"]

1. d4 {[%emt 0:00:00]} Nf6 {[%emt 0:00:00]} 2. c4 {[%emt 0:00:00]} g6 {[%emt 0:00:00]} 3. Nc3 {[%emt 0:00:00]} Bg7 {[%emt 0:00:00]} 4. e4 {[%emt 0:00:02]} O-O {[%emt 0:00:00]} 5. f4 {[%emt 0:00:05]} d6 {[%emt 0:00:00]} 6. Nf3 {[%emt 0:00:07]} c5 {[%emt 0:00:24]} 7. d5 {[%emt 0:00:07]} e6 {[%emt 0:00:09]} 8. Be2 {[%emt 0:00:06]} exd5 {[%emt 0:00:04]} 9. cxd5 {[%emt 0:00:05]} Re8 {[%emt 0:00:35]} 10. Nd2 {[%emt 0:00:09]} Na6 {[%emt 0:03:38]} 11. O-O {[%emt 0:00:51]} Nc7 {[%emt 0:00:23]} 12. a4 {[%emt 0:01:12]} b6 {[%emt 0:02:37]} 13. Bf3 {[%emt 0:04:12]} Ba6 {[%emt 0:05:35]} 14. Re1 {[%emt 0:00:51]} Rb8 {[%emt 0:00:09]} 15. Nf1 {[%emt 0:14:15]} Nd7 {[%emt 0:12:48]} 16. Be3 {[%emt 0:08:32]} c4 {[%emt 0:06:25]} 17. Qd2 {[%emt 0:09:27]} Nc5 {[%emt 0:00:33]} 18. Bxc5 {[%emt 0:00:52]} bxc5 {[%emt 0:00:44]} 19. Kh1 {[%emt 0:05:25]} Bd4 {[%emt 0:12:35]} 20. Ng3 {[%emt 0:04:08]} Na8 {[%emt 0:03:46]} 21. e5 {[%emt 0:07:52]} dxe5 {[%emt 0:00:34]} 22. f5 {[%emt 0:00:12]} Bc8 {[%emt 0:07:57]} 23. Be4 {[%emt 0:04:42]} Qh4 {[%emt 0:02:05]} 24. Rf1 {[%emt 0:02:46]} Nb6 {[%emt 0:04:05]} 25. Nb5 {[%emt 0:06:32]} Nd7 {[%emt 0:01:16]} 26. Rae1 {[%emt 0:16:42]} Nf6 {[%emt 0:02:53]} 27. fxg6 {[%emt 0:02:59]} hxg6 {[%emt 0:06:56]} 28. Rxf6 {[%emt 0:06:20]} Qxf6 {[%emt 0:00:12]} 29. Rf1 {[%emt 0:00:20]} Qh4 {[%emt 0:08:38]} 30. d6 {[%emt 0:02:11]} Rxb5 {[%emt 0:01:23]} 31. axb5 {[%emt 0:00:10]} Be6 {[%emt 0:00:06]} 32. Bc6 {[%emt 0:01:55]} Rd8 {[%emt 0:00:17]} 33. Ne4 {[%emt 0:00:12]} Bf5 {[%emt 0:02:04]} 34. Rxf5 {[%emt 0:01:28]} gxf5 {[%emt 0:00:04]} 35. g3 {[%emt 0:00:07]} c3 {[%emt 0:02:58]} 36. bxc3 {[%emt 0:00:33]} Bxc3 {[%emt 0:00:04]} 37. Qxc3 {[%emt 0:00:45]} Qh8 {[%emt 0:00:09]} 38. Qa5 {[%emt 0:00:37]} Kg7 {[%emt 0:00:21]} 39. Nxc5 {[%emt 0:00:48]} Rxd6 {[%emt 0:00:07]} 40. Qa1 {[%emt 0:00:00]} Kg6 {[%emt 0:00:00]} 41. Bf3 {[%emt 0:07:00]} Qe8 {[%emt 0:03:41]} 42. g4 {[%emt 0:04:01]} fxg4 {[%emt 0:02:14]} 43. Qb1+ {[%emt 0:00:20]} Kg7 {[%emt 0:02:39]} 44. Bxg4 {[%emt 0:01:21]} Qa8+ {[%emt 0:06:43]} 45. Ne4 {[%emt 0:06:00]} Qd5 {[%emt 0:03:30]} 46. Bf3 {[%emt 0:04:27]} Qd3 {[%emt 0:00:38]} 47. Qxd3 {[%emt 0:04:20]} Rxd3 {[%emt 0:00:01]} 48. Kg2 {[%emt 0:00:47]} f5 {[%emt 0:01:43]} 49. Nf2 {[%emt 0:00:34]} Rb3 {[%emt 0:01:35]} 50. Be2 {[%emt 0:00:45]} Kf6 {[%emt 0:00:43]} 51. h4 {[%emt 0:01:36]} Rb2 {[%emt 0:00:44]} 52. Kf1 {[%emt 0:01:42]} Rb1+ {[%emt 0:04:16]} 53. Nd1 {[%emt 0:00:30]} e4 {[%emt 0:01:55]} 54. Kf2 {[%emt 0:00:14]} Rc1 {[%emt 0:01:10]} 55. Ke3 {[%emt 0:01:08]} Ke5 {[%emt 0:00:56]} 56. Kd2 {[%emt 0:00:04]} Rc7 {[%emt 0:04:12]} 57. Ne3 {[%emt 0:00:28]} f4 {[%emt 0:02:28]} 58. Nc4+ {[%emt 0:00:14]} Kd4 {[%emt 0:00:31]} 59. b6 {[%emt 0:00:10]} axb6 {[%emt 0:00:08]} 60. Nxb6 {[%emt 0:00:08]} f3 {[%emt 0:00:26]} 61. Bf1 {[%emt 0:01:50]} e3+ {[%emt 0:00:20]} 62. Kd1 {[%emt 0:00:06]} Rb7 {[%emt 0:00:32]} 0-1

[Event "28th WSCC Open 50 2018"]
[Site "Bled"]
[Date "2018.11.29"]
[Round "11"]
[White "Mannion, Stephen R"]
[Black "Cetinkaya, Vedat Ali"]
[Result "1-0"]
[ECO "B12"]
[WhiteElo "2286"]
[BlackElo "2056"]
[Annotator "ChessBase"]
[PlyCount "41"]
[EventDate "2018.11.17"]
[EventType "swiss"]
[EventCountry "SLO"]
[SourceTitle "playchess.com"]
[Source "ChessBase"]
[SourceQuality "1"]
[TimeControl "40/5400+30:1800+30"]

1. e4 c6 2. d4 d5 3. e5 Bf5 4. Nf3 e6 5. Be2 Ne7 6. O-O c5 7. c4 Nec6 8. cxd5 Qxd5 9. Nc3 Qd7 10. Be3 cxd4 11. Nxd4 Nxd4 12. Bxd4 Nc6 13. Bb5 O-O-O 14. Be3 Qc7 15. Qa4 a6 16. Rac1 Kb8 17. Bxc6 Qxc6 18. Qa5 Be7 19. b4 Bd3 20. b5 Bxb5 21. Nxb5 1-0